Cogmind - Beta 16.1 @@@ ROGUE MODE // 2026.02.10 @ 22:55:15 Player: ywiktor Result: Destroyed by P-80 Master with Gamma Rifle Performance ------------- Evolutions (7) 3500 Regions Visited (15) 3000 Robots Destroyed (77) 385 Value Destroyed (3647) 3647 Prototype IDs (9) 180 Alien Tech Used (0) 0 Bonus (1991) 1991 TOTAL SCORE: 12703 Bonus ------- High Alert Combat Kills 12 Follower Combat Kills 1722 Built Enhanced Grunts 300 Friendly Fire -43 Cogmind --------- Core Integrity 0/1300 Matter 270/300 Energy 99/100 System Corruption 30% Temperature Cool (0) Movement Core (50) Location -3/Research Parts ------- > --- POWER (2) -------- (None) > --- PROPULSION (5) --- (None) > --- UTILITY (12) ----- (None) > --- WEAPON (2) ------- (None) > --- INVENTORY (5) ---- Micro Antimatter Reactor Improved Gyrokinetic Inverter Advanced Heat Sink High-powered Shock Rifle Heavy Laser Peak State ------------ > --- POWER ------------ Enhanced Fission Core Particle Reactor > --- PROPULSION ------- Carbon-fiber Leg Flexi-carbon Leg Thunder Leg Enhanced Flexi-carbon Leg Enhanced Flexi-carbon Leg > --- UTILITY ---------- Power Amplifier Advanced Power Amplifier Advanced Heat Sink Medium Storage Unit Improved Targeting Computer Advanced Targeting Computer Improved Target Analyzer Advanced Transmission Jammer Centrium Medium Armor Plating Medium Reactive Plating Advanced Force Field Hacking Suite > --- WEAPON ----------- Heavy Laser KE Penetrator > --- INVENTORY -------- Light Ion Engine Micro Fission Core Particle Reactor Carbon-fiber Leg Advanced Heat Sink Energy Well EM Disruption Field High-powered Shock Rifle Compact HERF Cannon Phasing Sabre [Rating: 117] Favorites ----------- Power Enhanced Fission Core Engine Reinforced Deuterium Engine Power Core Enhanced Fission Core Reactor Particle Reactor Propulsion Improved Titanium Leg Treads Light Treads Leg Improved Titanium Leg Hover Unit Improved Antigrav System Utility Medium Storage Unit Device Improved Heat Sink Storage Medium Storage Unit Processor Advanced Targeting Computer Hackware Hacking Suite Protection Layered Medium Armor Plating Weapon Variable Charge Gun Energy Gun Variable Charge Gun Energy Cannon Neutron Cannon Ballistic Gun Heavy Assault Rifle Launcher Grenade Launcher Impact Weapon Gravity Flail Slashing Weapon Ripper Piercing Weapon Force Lance Build | -11 -10 -10 -10 -8 -7 -7 -7 -6 -5 -5 -5 -5 -5 -4 -3 ------- Run | Yrd Mat Min Sub Mat Fac Low Low Fac Fac Ext Cet Arc Hub Fac Res Slots Evolved 14 | . . . . 4 2 . . 2 2 . . . . 2 2 Power 1 | . . . . . 1 . . . . . . . . . . Propulsion 3 | . . . . 2 . . . . . . . . . 1 . Utility 10 | . . . . 2 1 . . 2 2 . . . . 1 2 Weapon . | . . . . . . . . . . . . . . . . Parts Attached 108 | 6 4 7 1 21 9 4 . 6 5 9 5 . 5 8 18 Power 15 | 1 2 . . 2 2 1 . 1 1 1 . . . 1 3 Engine 6 | 1 2 . . 1 . 1 . 1 . . . . . . . Core 7 | . . . . 1 2 . . . 1 1 . . . 1 1 Reactor 2 | . . . . . . . . . . . . . . . 2 Propulsion 32 | 1 . 5 1 7 3 . . 1 . 3 2 . 3 2 4 Treads 2 | . . . . 2 . . . . . . . . . . . Leg 27 | 1 . 5 1 5 3 . . 1 . 3 2 . 3 2 1 Wheel . | . . . . . . . . . . . . . . . . Hover 3 | . . . . . . . . . . . . . . . 3 Flight . | . . . . . . . . . . . . . . . . Utility 37 | 1 1 1 . 6 3 1 . 3 3 3 2 . 1 4 8 Device 15 | . . 1 . 2 3 . . 2 1 . . . . 1 5 Storage 4 | 1 . . . 1 . . . . . . . . . . 2 Processor 4 | . . . . . . . . 1 1 1 . . . 1 . Hackware 2 | . . . . . . . . . . . . . . 1 1 Protection 12 | . 1 . . 3 . 1 . . 1 2 2 . 1 1 . Artifact . | . . . . . . . . . . . . . . . . Weapon 24 | 3 1 1 . 6 1 2 . 1 1 2 1 . 1 1 3 Energy Gun 8 | 1 . . . 2 . 2 . . 1 . . . 1 . 1 Energy Cannon 1 | . . . . . . . . . . . . . . 1 . Ballistic Gun 8 | 2 1 . . 2 . . . 1 . 1 1 . . . . Ballistic Cannon . | . . . . . . . . . . . . . . . . Launcher 3 | . . 1 . 2 . . . . . . . . . . . Special Weapon . | . . . . . . . . . . . . . . . . Impact Weapon 1 | . . . . . . . . . . . . . . . 1 Slashing Weapon 2 | . . . . . 1 . . . . 1 . . . . . Piercing Weapon 1 | . . . . . . . . . . . . . . . 1 Special Melee Weapon . | . . . . . . . . . . . . . . . . Unidentified Prototypes 9 | . 1 1 . 1 . . . . 1 . 2 . 1 1 1 Corrupted Parts 1 | . . . . . . 1 . . . . . . . . . System Corruption 11 | . . . . . . 11 . . . . . . . . . Parts Lost 45 | . . . . 5 1 4 . . 1 4 2 . 4 7 17 Power 7 | . . . . 1 1 1 . . . . . . 1 1 2 Propulsion 12 | . . . . 1 . . . . . 2 . . 1 1 7 Utility 19 | . . . . 3 . 2 . . 1 1 2 . 1 4 5 Weapon 7 | . . . . . . 1 . . . 1 . . 1 1 3 Highest Loss Streak 9 | . . . . 2 1 2 . . 1 1 2 . 4 4 9 To Critical Strikes 1 | . . . . . . . . . . 1 . . . . . Average Backups 8 | 2 6 7 7 7 8 9 10 9 9 9 10 10 9 9 7 Power 1 | . 1 1 1 1 . . 1 1 1 1 1 1 . . 2 Propulsion 1 | 1 3 . . . 1 2 2 2 2 2 3 3 2 1 . Utility 2 | . . 2 3 1 2 3 4 3 3 2 2 2 2 3 2 Weapon 3 | . 1 3 3 4 3 3 3 3 3 3 4 4 3 4 2 Tool/Special . | . . . . . . . . . . . . . . . . Unused Backups 20 | . . 2 1 1 3 . . 1 1 4 2 . . . 5 Power 4 | . . . . . 1 . . . 1 . . . . . 2 Propulsion 9 | . . 2 . . 1 . . . . 4 1 . . . 1 Utility 3 | . . . . . 1 . . 1 . . . . . . 1 Weapon 4 | . . . 1 1 . . . . . . 1 . . . 1 Tool/Special . | . . . . . . . . . . . . . . . . Average Slot Usage (%) 92 | . 71 100 100 89 98 85 84 85 88 99 99 100 98 95 78 Engine 4 | . 13 14 14 4 7 6 7 8 7 1 . . 3 . . Core 4 | . . . . 4 6 2 . . 2 9 11 11 6 6 2 Treads 1 | . . . . 9 . . . . . . . . . . . Leg 23 | . 14 28 28 20 29 30 30 26 23 23 23 23 23 25 16 Device 12 | . . . 10 13 22 15 15 18 16 12 11 11 6 5 14 Storage 7 | . 14 14 14 9 7 7 7 6 5 5 5 5 5 5 5 Processor 7 | . . . . . . . . 4 7 16 17 17 17 15 12 Protection 10 | . . 14 3 10 7 7 7 6 9 15 16 17 21 20 3 Energy Gun 4 | . . . . 6 7 10 12 6 5 5 5 5 4 . 4 Ballistic Gun 5 | . 28 14 14 6 4 . . 2 3 4 5 5 5 4 1 Launcher 2 | . . 13 14 4 1 1 . . . . . . . . . Peak Build Rating 117 | 5 8 18 21 39 50 50 48 59 72 76 81 81 83 100 117 Average Rating 56 | 4 6 10 18 26 46 47 48 54 66 73 78 81 80 91 90 On Entrance 46 | . 5 8 11 14 39 50 48 48 58 72 76 81 81 80 78 Avg Prop Armor Cover (%) 5 | . . . . 5 3 6 . . . . . . . . 6 Naked Turns 105 | . . . . . . . . . . . . . . . 105 Heaviest Build 98 | 12 18 19 19 38 48 58 58 69 80 85 77 75 84 89 98 Greatest Support 119 | 10 10 20 30 80 80 74 74 76 78 78 78 78 96 119 114 Greatest Overweight (x) 25 | 1 1 . . 1 . 1 . . 1 1 . . 1 . 25 Average Overweight (x) . | . 1 . . . . . . . . . . . . . . Largest Inventory Capacity 10 | 8 8 8 8 10 10 10 10 10 10 10 10 10 10 10 10 Average Capacity 9 | 7 8 8 8 8 10 10 10 10 10 10 10 10 10 10 9 Most Carried 10 | 4 8 8 8 10 10 10 10 10 10 10 10 10 10 10 10 Average Carried 8 | 2 6 7 7 8 9 9 10 9 9 9 10 10 9 9 7 Final Capacity 10 | 8 8 8 8 10 10 10 10 10 10 10 10 10 10 10 5 Final Carried 10 | 4 8 8 8 10 10 10 10 10 10 10 10 10 10 9 5 Class Distribution -------------------- 53% | Scavenger-Mutant 45% | Mutant Dominant Class ---------------- Mutant | -10/Materials Mutant | -10/Mines Mutant | -10/Subcaves Scavenger-Mutant | -8/Materials Mutant | -7/Factory Mutant | -7/Lower Caves Mutant | -7/Lower Caves Mutant | -6/Factory Scavenger-Mutant | -5/Factory Scavenger-Mutant | -5/Extension Scavenger-Mutant | -5/Cetus Scavenger-Mutant | -5/Archives Scavenger-Mutant | -5/Hub_04(d) Scavenger-Mutant | -4/Factory Scavenger-Mutant | -3/Research Resources | -11 -10 -10 -10 -8 -7 -7 -7 -6 -5 -5 -5 -5 -5 -4 -3 ----------- Run | Yrd Mat Min Sub Mat Fac Low Low Fac Fac Ext Cet Arc Hub Fac Res Matter Collected 2697 | 205 . 258 99 467 153 283 32 66 68 382 92 46 68 130 348 Remotely . | . . . . . . . . . . . . . . . . Salvage Created 3580 | . . 248 52 531 294 400 104 66 68 790 . . . 572 455 Parts 181 | . . 10 . 25 20 20 7 2 3 42 . . . 27 25 Haulers Intercepted . | . . . . . . . . . . . . . . . . Recyclers Shooed 2 | . . . . . . . . . . . . . . 1 1 Parts Field Recycled . | . . . . . . . . . . . . . . . . Retrieved Matter . | . . . . . . . . . . . . . . . . Parts Self-Destructed 13 | . . . 6 . . 7 . . . . . . . . . Prevented 10 | . . . . . . 10 . . . . . . . . . Parts Restored . | . . . . . . . . . . . . . . . . Kills | -11 -10 -10 -10 -8 -7 -7 -7 -6 -5 -5 -5 -5 -5 -4 -3 ------- Run | Yrd Mat Min Sub Mat Fac Low Low Fac Fac Ext Cet Arc Hub Fac Res Combat Hostiles Destroyed 67 | . . 6 2 15 6 8 . 1 1 11 . . . 9 8 Guns 36 | . . . . 7 6 1 . 1 1 11 . . . 2 7 Cannons 6 | . . . . . . . . . . . . . . 6 . AOE 23 | . . 6 2 8 . 5 . . . . . . . 1 1 Classes Destroyed 12 | . . 2 1 3 1 1 1 . . 1 . . . 2 . Worker 2 | . . . . . . . . . . . . . . 1 1 Builder 4 | . . . . . . . . . . 4 . . . . . Tunneler 1 | . . . . . . . . . . . . . . 1 . Recycler 1 | . . 1 . . . . . . . . . . . . . Operator 2 | . . . . 1 . . . . . . . . . . 1 Swarmer 10 | . . . . 2 . 3 . . . 1 . . . . 4 Grunt 38 | . . 6 . 11 3 3 . . 1 7 . . . 7 . Sentry 8 | . . . . 2 1 . . 1 . 3 . . . . 1 Programmer 8 | . . . . . 2 1 . . . . . . . 2 3 Behemoth 1 | . . . . . . 1 . . . . . . . . . Subdweller 2 | . . . 2 . . . . . . . . . . . . Samaritan 2 | . . . . . . . 2 . . . . . . . . Best Kill Streak 5 | . . 3 1 3 3 3 . 1 1 2 . . . 4 5 Combat Bots Only 5 | . . 2 1 3 3 3 . 1 1 2 . . . 3 5 Max Kills in Single Turn 3 | . . 2 1 2 1 3 1 1 1 1 . . . 2 1 Gunslinging . | . . . . . . . . . . . . . . . . Exploded 3 | . . 2 1 2 . 3 . . . . . . . 1 1 Melee . | . . . . . . . . . . . . . . . . Uniques/NPCs Destroyed . | . . . . . . . . . . . . . . . . Combat | -11 -10 -10 -10 -8 -7 -7 -7 -6 -5 -5 -5 -5 -5 -4 -3 -------- Run | Yrd Mat Min Sub Mat Fac Low Low Fac Fac Ext Cet Arc Hub Fac Res Hostile Shots Fired 847 | . 2 7 5 73 101 66 . 55 5 71 19 5 40 150 248 Missed 274 | . . 1 2 15 22 25 . 21 . 24 8 1 17 61 77 Hits 573 | . 2 6 3 58 79 41 . 34 5 47 11 4 23 89 171 Projectile 573 | . 2 6 3 58 79 41 . 34 5 47 11 4 23 89 171 Critical Strikes 30 | . . . . 2 2 1 . . . 4 2 . 1 6 12 Damage Taken 9519 | . 21 177 89 881 630 911 . 261 94 1146 206 93 511 1653 2846 Core 1773 | . . 35 23 23 68 62 . 42 . 61 11 . 82 63 1303 Absorbed by Shields 1759 | . . . . . 204 12 . . . 221 81 . . . 1241 Ignored by Resistances 505 | . . . . . . . . . . 94 69 16 165 132 29 Regen/Repaired (Parts) 16 | . . . . 16 . . . . . . . . . . . Core Remaining (%) 89 | 100 . . 76 95 . . 81 95 . . . . 84 94 . Volleys Fired 304 | . 1 6 4 50 26 31 . 6 3 96 8 4 6 27 36 Largest 2 | . 2 1 1 2 2 2 . 2 2 2 2 1 2 2 2 Hottest 225 | . 43 30 30 79 78 110 . 97 103 225 108 35 104 125 129 Shots Fired 464 | . 2 7 4 69 51 36 . 12 6 130 11 4 10 54 68 Gun 394 | . 2 . . 53 51 25 . 12 6 130 11 4 10 27 63 Cannon 32 | . . . . . . . . . . . . . . 27 5 Launcher 38 | . . 7 4 16 . 11 . . . . . . . . . Special . | . . . . . . . . . . . . . . . . Kinetic 186 | . 2 . . 34 26 3 . 6 3 36 8 4 6 27 31 Thermal 209 | . . . . 19 25 4 . 5 3 85 3 . 4 27 34 Explosive 22 | . . 7 4 11 . . . . . . . . . . . Electromagnetic 47 | . . . . 5 . 29 . 1 . 9 . . . . 3 Robot Hit Streak 39 | . 1 2 6 12 15 6 . 8 12 39 5 3 3 11 30 Robot Miss Streak 6 | . 1 2 . 3 4 3 . 1 . 6 1 1 2 4 2 Penetration Max 1 | . . . . . . . . . . 1 1 . . 1 1 Secondary Targets 2 | . . . . . . . . . . 2 . . . . . Max Gunslinging Chain 1 | . . . . . . . . . . 1 . . . . . Shots Hit Robots 303 | . 1 4 4 51 32 21 3 11 6 61 8 3 6 34 58 Core Hits 162 | . . 12 4 32 13 17 2 3 3 29 3 . . 20 24 Critical Kills 3 | . . . . . . . . . . . . . . 2 1 Critical Parts Destroyed 6 | . . . . . . . . . . 1 . . . 3 2 Critical Strikes 14 | . . . . . . 1 . . . 1 . . . 5 7 Burn 1 | . . . . . . 1 . . . . . . . . . Destroy 10 | . . . . . . . . . . 1 . . . 5 4 Sever 3 | . . . . . . . . . . . . . . . 3 Melee Attacks 38 | . . . . . 4 . 3 1 . 13 . . 1 . 16 Impact . | . . . . . . . . . . . . . . . . Slashing 32 | . . . . . 4 . 3 1 . 13 . . 1 . 10 Piercing 6 | . . . . . . . . . . . . . . . 6 Sneak Attacks 3 | . . . . . . . 3 . . . . . . . . Combat Hostiles . | . . . . . . . . . . . . . . . . Follow-up Attacks . | . . . . . . . . . . . . . . . . Damage Inflicted 8869 | . 14 336 144 1660 582 587 219 201 117 1359 202 73 95 1523 1757 Guns 5245 | . 14 . . 633 582 193 . 201 117 1359 202 73 95 486 1290 Cannons 907 | . . . . . . . . . . . . . . 725 182 Explosions 2309 | . . 336 144 1027 . 394 . . . . . . . 312 96 Melee 383 | . . . . . . . 219 . . . . . . . 164 Ramming 25 | . . . . . . . . . . . . . . . 25 Kinetic 2998 | . 14 . . 390 242 37 . 99 63 604 166 73 77 486 747 Thermal 3207 | . . . . 243 340 77 . 94 54 755 36 . 18 796 794 Explosive 1545 | . . 336 144 824 . . . . . . . . . 241 . Electromagnetic 711 | . . . . 203 . 473 . 8 . . . . . . 27 Impact . | . . . . . . . . . . . . . . . . Slashing 356 | . . . . . . . 219 . . . . . . . 137 Piercing 27 | . . . . . . . . . . . . . . . 27 Highest Corruption 28 | . 2 2 2 . 3 17 17 . . 6 6 6 6 3 28 Average Corruption 5 | . 2 2 2 . 2 11 17 . . 3 6 6 6 2 11 Corruption Purged . | . . . . . . . . . . . . . . . . Corruption Blocked . | . . . . . . . . . . . . . . . . Effects 127 | . 5 8 13 . 6 21 4 . . 13 9 10 3 4 31 Message Errors 32 | . 2 3 2 . 2 6 1 . . 3 2 5 . 1 5 Matter Fused 30 | . 1 . 4 . 3 8 2 . . 2 2 2 . . 6 Heat Flow Errors 16 | . . 1 2 . . 3 . . . 1 1 . 1 2 5 Energy Discharges 13 | . 2 3 2 . . 1 . . . 1 . . . . 4 Parts Rejected 4 | . . . . . . . . . . . 1 . 1 1 1 Data Loss (minor) 12 | . . . 1 . . . 1 . . 3 2 . 1 . 4 Data Loss (major) 8 | . . . 2 . . 1 . . . 2 1 1 . . 1 Misfires 4 | . . 1 . . . 1 . . . 1 . . . . 1 Alerts 3 | . . . . . . 1 . . . . . 2 . . . Misdirections 3 | . . . . . . . . . . . . . . . 3 Weapon Failures 2 | . . . . . 1 . . . . . . . . . 1 Overload Shots 2 | . . . . . . . . . . 2 . . . . . Overflow Damage 118 | . . . . 14 . . 65 . . . . . . 21 18 Projectiles . | . . . . . . . . . . . . . . . . Explosions 53 | . . . . 14 . . . . . . . . . 21 18 Melee 65 | . . . . . . . 65 . . . . . . . . Knockbacks . | . . . . . . . . . . . . . . . . Impact . | . . . . . . . . . . . . . . . . Kinetic . | . . . . . . . . . . . . . . . . Secondary . | . . . . . . . . . . . . . . . . Self-Inflicted Damage 334 | . . 87 26 24 . . . . . . . . . 100 97 Shots 8 | . . 3 2 1 . . . . . . . . . 1 1 Rammed 5 | . . . . . . . . . . . . . . . 5 Targets Rammed 5 | . . . . . . . . . . . . . . . 5 Kicked . | . . . . . . . . . . . . . . . . Crushed . | . . . . . . . . . . . . . . . . Highest Temperature 390 | . . 206 245 174 390 277 . 61 152 268 110 . 136 243 307 Average Temperature 86 | . . 75 102 48 222 110 . 45 88 54 65 . 41 84 93 Received Heat Transfer 1547 | . 12 48 6 432 192 126 . 81 45 234 9 18 39 280 25 Effects 3 | . . . . . . . . . . . . . . 3 . Energy Bleed 1 | . . . . . . . . . . . . . . 1 . Interference 2 | . . . . . . . . . . . . . . 2 . Siege Activations . | . . . . . . . . . . . . . . . . Martial Activations . | . . . . . . . . . . . . . . . . Shielding Activations . | . . . . . . . . . . . . . . . . Robots Disrupted . | . . . . . . . . . . . . . . . . Combat Hostiles . | . . . . . . . . . . . . . . . . Robots Corrupted 2 | . . . . . . 2 . . . . . . . . . Combat Hostiles 2 | . . . . . . 2 . . . . . . . . . Parts Fried 8 | . . . . 3 . 4 . . . 1 . . . . . Impact Corruptions . | . . . . . . . . . . . . . . . . Robots Melted . | . . . . . . . . . . . . . . . . Combat Hostiles . | . . . . . . . . . . . . . . . . Parts Melted 3 | . . . . . . 1 . . . 1 . . . . 1 Heat Transferred 3972 | . . . . 555 629 185 . 185 111 1221 74 . 37 50 925 Parts Sabotaged . | . . . . . . . . . . . . . . . . Parts Stolen . | . . . . . . . . . . . . . . . . Parts Stripped . | . . . . . . . . . . . . . . . . Power Chain Reactions 3 | . . . . . . 2 . . . . . . . . 1 Alert | -11 -10 -10 -10 -8 -7 -7 -7 -6 -5 -5 -5 -5 -5 -4 -3 ------- Run | Yrd Mat Min Sub Mat Fac Low Low Fac Fac Ext Cet Arc Hub Fac Res Maximum Alert Level 2 | . . . . . . . . . . 2 1 1 1 1 . Low Security (%) 85 | 100 100 100 . 100 100 . . 100 100 67 8 58 63 94 100 Level 1 12 | . . . . . . . . . . 25 91 41 36 5 . Level 2 1 | . . . . . . . . . . 6 . . . . . Level 3 . | . . . . . . . . . . . . . . . . Level 4 . | . . . . . . . . . . . . . . . . Level 5 . | . . . . . . . . . . . . . . . . High Security . | . . . . . . . . . . . . . . . . Max Security . | . . . . . . . . . . . . . . . . Peak Influence 511 | . 1 85 . 124 51 . . 30 35 511 379 268 354 311 157 Initial 280 | . . . . . 36 . . . . . 280 72 44 153 143 Average 84 | . . 32 . 50 12 . . 2 3 160 264 194 178 89 48 Influence Increases 3912 | . 1 201 . 470 165 200 . 31 65 1113 161 216 509 492 288 Destroy 0b10 Robot/C 2040 | . . 120 . 300 120 160 . 20 20 600 80 80 200 180 160 Destroy 0b10 Robot/NC 85 | . . 5 . 5 . . . . . 30 5 5 15 10 10 Destroy Leader 374 | . . 30 . 60 40 40 . 10 . 82 . . 42 30 40 Allied During Kill 551 | . . 4 . . . . . . . 231 55 85 176 . . Successful Hack 75 | . . . . 10 . . . . 30 7 7 . . 21 . Disable Machine 270 | . . . . 30 . . . . 15 75 . 30 30 90 . Destroy Structure 412 | . 1 42 . 65 5 . . 1 . 58 14 16 46 146 18 Partial Spotted 45 | . . . . . . . . . . . . . . . 45 Lose Combat Pursuer 60 | . . . . . . . . . . 30 . . . 15 15 Influence Decreases 3879 | . 1 148 53 390 245 200 . 31 65 611 482 269 324 532 528 Entered New Map 778 | . . . 29 . 44 . . . . . 222 109 84 160 130 Time Decay 2504 | . 1 148 24 350 191 160 . 31 65 491 180 160 60 302 341 Lost Part 317 | . . . . 40 10 40 . . . 40 20 . 40 70 57 Lost Ally 280 | . . . . . . . . . . 80 60 . 140 . . Squads Dispatched 26 | . 2 . . 2 3 . . 1 . 5 . . 6 4 3 Investigation 5 | . 1 . . . . . . 1 . 2 . . 1 . . Extermination 7 | . . . . . 2 . . . . . . . . 2 3 Reinforcement 14 | . 1 . . 2 1 . . . . 3 . . 5 2 . Assault . | . . . . . . . . . . . . . . . . Garrison . | . . . . . . . . . . . . . . . . Intercept . | . . . . . . . . . . . . . . . . Searches Triggered . | . . . . . . . . . . . . . . . . Construction Impeded 2 | . . . . . . . . . . 1 . . 1 . . Haulers Reinforced . | . . . . . . . . . . . . . . . . Active Scanning Responses . | . . . . . . . . . . . . . . . . Cargo Convoy Interrupts . | . . . . . . . . . . . . . . . . Stealth | -11 -10 -10 -10 -8 -7 -7 -7 -6 -5 -5 -5 -5 -5 -4 -3 --------- Run | Yrd Mat Min Sub Mat Fac Low Low Fac Fac Ext Cet Arc Hub Fac Res Distress Signals 10 | . . . . 2 1 . . . 1 3 1 . 1 1 . Communications Jammed 17 | . . . . . . . . . . . . . . . 17 Distress Signals 17 | . . . . . . . . . . . . . . . 17 Times Spotted 151 | . 3 5 2 25 11 8 . 3 2 33 5 4 12 19 19 Peak Tracking Total 7 | . 3 2 1 4 4 3 . 3 2 5 5 2 6 6 7 Tactical Retreats 4 | . . . . . . . . . . 2 . . . 1 1 Traps | -11 -10 -10 -10 -8 -7 -7 -7 -6 -5 -5 -5 -5 -5 -4 -3 ------- Run | Yrd Mat Min Sub Mat Fac Low Low Fac Fac Ext Cet Arc Hub Fac Res Traps Triggered 5 | . 1 . . . 1 . . 1 . 1 . . . . 1 Indirectly . | . . . . . . . . . . . . . . . . Trap Hack Attempts . | . . . . . . . . . . . . . . . . Triggered . | . . . . . . . . . . . . . . . . Disarmed . | . . . . . . . . . . . . . . . . Reprogrammed . | . . . . . . . . . . . . . . . . Reused . | . . . . . . . . . . . . . . . . Traps Extracted . | . . . . . . . . . . . . . . . . Installed . | . . . . . . . . . . . . . . . . Triggered . | . . . . . . . . . . . . . . . . Machines | -11 -10 -10 -10 -8 -7 -7 -7 -6 -5 -5 -5 -5 -5 -4 -3 ---------- Run | Yrd Mat Min Sub Mat Fac Low Low Fac Fac Ext Cet Arc Hub Fac Res Machines Disabled 18 | . . . . 2 . . . . 1 5 . 2 2 6 . Max in Single Turn 2 | . . . . 1 . . . . 1 1 . . . 2 . Garrison Access 2 | . . . . . . . . . . . . . . 1 1 Machines Repaired . | . . . . . . . . . . . . . . . . Machines Dismantled . | . . . . . . . . . . . . . . . . Machines Sabotaged . | . . . . . . . . . . . . . . . . Overloaded Fab Kills . | . . . . . . . . . . . . . . . . Hacking | -11 -10 -10 -10 -8 -7 -7 -7 -6 -5 -5 -5 -5 -5 -4 -3 --------- Run | Yrd Mat Min Sub Mat Fac Low Low Fac Fac Ext Cet Arc Hub Fac Res Machines Accessed 34 | . 3 . 2 6 3 . . 1 1 7 1 1 1 6 2 Terminals 22 | . 3 . . 5 . . . . 1 7 1 . 1 3 1 Fabricators 3 | . . . . . 1 . . 1 . . . . . 1 . Repair Stations 1 | . . . . 1 . . . . . . . . . . . Recycling Units 2 | . . . . . 1 . . . . . . . . 1 . Scanalyzers . | . . . . . . . . . . . . . . . . Garrison Access 3 | . . . . . 1 . . . . . . . . 1 1 Total Hacks 92 | . 7 . 3 12 6 . . 2 2 16 1 25 2 12 4 Successful 51 | . 2 . 3 3 1 . . . 2 3 1 25 1 9 1 Failed 41 | . 5 . . 9 5 . . 2 . 13 . . 1 3 3 Catastrophic 6 | . 1 . . 1 2 . . . . 1 . . . 1 . Database Lockouts . | . . . . . . . . . . . . . . . . Manual 15 | . 2 . . 3 3 . . . . . 3 . 2 2 . Terminals 49 | . 7 . . 10 . . . . 2 16 1 . 2 8 3 Fabricators 7 | . . . . . 4 . . 2 . . . . . 1 . Repair Stations 2 | . . . . 2 . . . . . . . . . . . Recycling Units 3 | . . . . . 1 . . . . . . . . 2 . Scanalyzers . | . . . . . . . . . . . . . . . . Garrison Access 3 | . . . . . 1 . . . . . . . . 1 1 Terminal Hacks 41 | . 1 . 3 1 . . . . 2 3 1 25 . 5 . Record 28 | . . . 1 . . . . . . . 1 25 . 1 . Open Door 2 | . . . 1 . . . . . . 1 . . . . . Branch Access Points 2 | . . . . . . . . . 1 . . . . 1 . Alert Level 2 | . . . . . . . . . . 1 . . . 1 . Recall Extermination 1 | . . . . . . . . . . . . . . 1 . Hauler Manifests 1 | . 1 . . . . . . . . . . . . . . Registered Components 1 | . . . . 1 . . . . . . . . . . . Zone Layout 3 | . . . . . . . . . 1 1 . . . 1 . Release Object 1 | . . . 1 . . . . . . . . . . . . Fabricator Hacks 2 | . . . . . 1 . . . . . . . . 1 . Network Status 2 | . . . . . 1 . . . . . . . . 1 . Repair Station Hacks 2 | . . . . 2 . . . . . . . . . . . Scan Component 1 | . . . . 1 . . . . . . . . . . . Repair 1 | . . . . 1 . . . . . . . . . . . Recycling Unit Hacks 2 | . . . . . . . . . . . . . . 2 . Report Inventory 1 | . . . . . . . . . . . . . . 1 . Retrieve Matter 1 | . . . . . . . . . . . . . . 1 . Scanalyzer . | . . . . . . . . . . . . . . . . Garrison Access Hacks 2 | . . . . . . . . . . . . . . 1 1 Seal Access 2 | . . . . . . . . . . . . . . 1 1 Unauthorized Hacks 2 | . 1 . . . . . . . . . . . 1 . . Terminals 2 | . 1 . . . . . . . . . . . 1 . . Operators 1 | . 1 . . . . . . . . . . . . . . Sabotage 1 | . . . . . . . . . . . . . 1 . . Fabricators . | . . . . . . . . . . . . . . . . Repair Stations . | . . . . . . . . . . . . . . . . Recycling Units . | . . . . . . . . . . . . . . . . Scanalyzers . | . . . . . . . . . . . . . . . . Garrison Access . | . . . . . . . . . . . . . . . . Data Cores Recovered 1 | . . . . . . . . . . . . . . . 1 Used . | . . . . . . . . . . . . . . . . Hacking Detections 24 | . 3 . . 4 3 . . 1 1 6 2 . . 3 1 Full Trace Events 3 | . 1 . . . . . . . . 2 . . . . . Feedback Events . | . . . . . . . . . . . . . . . . Feedback Blocked . | . . . . . . . . . . . . . . . . Robot Schematics Acquired . | . . . . . . . . . . . . . . . . Robots Built . | . . . . . . . . . . . . . . . . Authchips . | . . . . . . . . . . . . . . . . Time . | . . . . . . . . . . . . . . . . Total Robot Build Rating . | . . . . . . . . . . . . . . . . Part Schematics Acquired . | . . . . . . . . . . . . . . . . Parts Built . | . . . . . . . . . . . . . . . . Authchips . | . . . . . . . . . . . . . . . . Time . | . . . . . . . . . . . . . . . . Total Part Build Rating . | . . . . . . . . . . . . . . . . Part Studies Acquired . | . . . . . . . . . . . . . . . . Parts Repaired 1 | . . . . 1 . . . . . . . . . . . Time 38 | . . . . 38 . . . . . . . . . . . Parts Recycled . | . . . . . . . . . . . . . . . . Recycled Matter . | . . . . . . . . . . . . . . . . Retrieved Matter . | . . . . . . . . . . . . . . . . Retrieved Components . | . . . . . . . . . . . . . . . . Parts Scanalyzed . | . . . . . . . . . . . . . . . . Part Schematics Acquired . | . . . . . . . . . . . . . . . . Parts Damaged . | . . . . . . . . . . . . . . . . Bothacking | -11 -10 -10 -10 -8 -7 -7 -7 -6 -5 -5 -5 -5 -5 -4 -3 ------------ Run | Yrd Mat Min Sub Mat Fac Low Low Fac Fac Ext Cet Arc Hub Fac Res Used RIF Installer . | . . . . . . . . . . . . . . . . Robots Hacked . | . . . . . . . . . . . . . . . . Non-combat . | . . . . . . . . . . . . . . . . Combat . | . . . . . . . . . . . . . . . . Robot Hacks Applied . | . . . . . . . . . . . . . . . . Relay Couplers Released . | . . . . . . . . . . . . . . . . Fabnet Peak Effective % . | . . . . . . . . . . . . . . . . Robots Rewired 12 | . . . . . . . . . . 12 . . . . . Allies Hacked . | . . . . . . . . . . . . . . . . Hacks Repelled . | . . . . . . . . . . . . . . . . Allies | -11 -10 -10 -10 -8 -7 -7 -7 -6 -5 -5 -5 -5 -5 -4 -3 -------- Run | Yrd Mat Min Sub Mat Fac Low Low Fac Fac Ext Cet Arc Hub Fac Res Total Allies 23 | . . 2 . . . . . . . 16 5 . . . . Largest Group 10 | . . 2 1 . . . . . . 10 9 9 8 . . Highest-Rated Group 733 | . . 45 14 . . . . . . 434 733 733 581 . . Highest-Rated Ally 159 | . . 31 14 . . . . . . 159 159 152 96 . . Total Orders . | . . . . . . . . . . . . . . . . Ally Attacks 234 | . . 5 . . . . . . . 99 35 31 64 . . Total Damage 7433 | . . 40 . . . . . . . 2931 698 1348 2416 . . Kills 47 | . . . . . . . . . . 22 6 5 14 . . Allies Corrupted 1 | . . . . . . . . . . 1 . . . . . Allies Melted . | . . . . . . . . . . . . . . . . Intel | -11 -10 -10 -10 -8 -7 -7 -7 -6 -5 -5 -5 -5 -5 -4 -3 ------- Run | Yrd Mat Min Sub Mat Fac Low Low Fac Fac Ext Cet Arc Hub Fac Res Active Infowar (turns) 1760 | . . 3 583 318 . . . . . . . . . . 856 Sensors 904 | . . 3 583 318 . . . . . . . . . . . Jamming 856 | . . . . . . . . . . . . . . . 856 Robot Analysis Total . | . . . . . . . . . . . . . . . . Derelict Logs Recovered 5 | . . 2 1 . . 2 . . . . . . . . . Drone Launches . | . . . . . . . . . . . . . . . . Drone Recoveries . | . . . . . . . . . . . . . . . . Exploration | -11 -10 -10 -10 -8 -7 -7 -7 -6 -5 -5 -5 -5 -5 -4 -3 ------------- Run | Yrd Mat Min Sub Mat Fac Low Low Fac Fac Ext Cet Arc Hub Fac Res Turns Passed 9532 | 121 288 468 777 1043 681 671 109 352 604 1826 373 325 138 668 1088 Spaces Moved 5643 | 66 144 339 588 522 434 414 81 256 335 835 178 198 87 459 707 Core 197 | 12 . . . . . . . . . . . . . . 185 Treads 270 | . . . . 270 . . . . . . . . . . . Legs 5176 | 54 144 339 588 252 434 414 81 256 335 835 178 198 87 459 522 Wheels . | . . . . . . . . . . . . . . . . Hover . | . . . . . . . . . . . . . . . . Flight . | . . . . . . . . . . . . . . . . Fastest Speed 50 | 50 190 120 120 130 122 122 122 122 122 122 120 120 120 120 50 Average Speed 137 | 163 190 120 128 148 129 141 122 122 164 161 120 120 122 120 122 Slowest Speed 1300 | 190 190 120 130 200 130 190 122 122 195 195 122 120 190 120 1300 Overloaded Moves . | . . . . . . . . . . . . . . . . Propulsion Burnouts . | . . . . . . . . . . . . . . . . Robots Hopped . | . . . . . . . . . . . . . . . . Potential Cave-ins 22 | . . . . . . . . . . 22 . . . . . Cave-ins Triggered 1 | . . . . . . . . . . 1 . . . . . Exploration Rate (%) 33 | 4 28 67 26 42 10 66 15 7 9 69 62 97 11 13 13 Regions Visited 15 Branch Regions 8 Pre-discovered Areas 3 | . . 1 1 . . 1 . . . . . . . . . Known Exits Taken 1 | . . . . . . . . . 1 . . . . . . Unknown Exits Taken 14 | 1 1 1 1 1 1 1 1 1 . 1 1 1 1 1 . Scrap Searched 7 | . . 2 4 . . 1 . . . . . . . . . Spaces Dug 23 | . . . . . 4 . . 1 . 16 . . 1 . 1 Terrain Destroyed 265 | . . 44 35 66 4 . . 1 . 18 . . 3 86 8 Melee 12 | . . . . . 4 . . 1 . 5 . . 1 . 1 Projectile 35 | . . . . . . . . . . 13 . . 2 18 2 AOE 218 | . . 44 35 66 . . . . . . . . . 68 5 Terrain Rammed . | . . . . . . . . . . . . . . . . Walls Destroyed . | . . . . . . . . . . . . . . . . Machines Disabled . | . . . . . . . . . . . . . . . . Actions | -11 -10 -10 -10 -8 -7 -7 -7 -6 -5 -5 -5 -5 -5 -4 -3 --------- Run | Yrd Mat Min Sub Mat Fac Low Low Fac Fac Ext Cet Arc Hub Fac Res Total 6882 | 77 157 397 606 721 497 465 86 280 380 1162 325 281 106 515 827 Wait 499 | . 1 32 10 90 3 3 2 6 30 80 130 80 . 13 19 Move 5628 | 65 143 338 587 521 433 413 80 255 334 834 177 197 86 458 707 Hop . | . . . . . . . . . . . . . . . . Pick Up 67 | 5 4 3 1 13 8 4 . 2 1 8 1 . 4 4 9 Fast Attach 48 | 5 2 2 . 12 2 2 . 2 4 3 3 . 1 2 8 Attach 37 | . 1 1 . 5 4 2 . 1 1 3 . . 4 4 11 Detach 11 | . 2 1 . 3 . 2 . . . . . . . . 3 Swap 71 | 1 1 5 3 10 9 5 1 5 4 12 3 . 3 5 4 Drop 63 | 1 2 9 1 17 8 3 . 2 3 8 3 . 1 2 3 Fire 304 | . 1 6 4 50 26 31 . 6 3 96 8 4 6 27 36 Melee 38 | . . . . . 4 . 3 1 . 13 . . 1 . 16 Ram 6 | . . . . . . . . . . . . . . . 6 Kick . | . . . . . . . . . . . . . . . . Crush . | . . . . . . . . . . . . . . . . Escape Stasis 5 | . . . . . . . . . . . . . . . 5 Rewire 105 | . . . . . . . . . . 105 . . . . . Trap . | . . . . . . . . . . . . . . . . Miscellaneous . | . . . . . . . . . . . . . . . . Route ------- -11/Scrapyard -10/Materials (discovered 2 exits: [*Min x2]) -10/Mines (discovered 2 exits: [*Mat] / *Sub) -10/Subcaves -8/Materials -7/Factory -7/Lower Caves -7/Lower Caves -6/Factory (discovered 2 exits: *Fac / Low) -5/Factory (discovered 4 exits: *Upp x2 / *Ext x2) -5/Extension (discovered 2 exits: *Fac / *Cet) -5/Cetus -5/Archives (discovered 3 exits: *Fac / *Hub x2) -5/Hub_04(d) -4/Factory (discovered 4 exits: *Res / Upp x2 / Arm) -3/Research History --------- Turn | Location | Event 5 | -11/Scrapyard | Discovered new exit (range 16) 122 | -11/Scrapyard | Entered Materials 313 | -10/Materials | Build established: Mutant 361 | -10/Materials | Discovered new exit (range 12) 372 | -10/Materials | Discovered new exit (range 14) 410 | -10/Materials | Entered Mines 435 | -10/Mines | Learned location of Mines (-9) 447 | -10/Mines | A weapon hastily lodged in a ceiling crevice suddenly fell to the ground 494 | -10/Mines | Learned Materials trap positions 518 | -10/Mines | Found a Scrap Suit stashed away for nefarious purposes 522 | -10/Mines | Found Scrap Suit 554 | -10/Mines | Discovered new exit (range 8) 719 | -10/Mines | Discovered new exit (range 12) 720 | -10/Mines | Found a damaged Exp. Sensor Array with a note attached 723 | -10/Mines | Found Prototype Device 723 | -10/Mines | Identified Exp. Sensor Array 878 | -10/Mines | Entered Subcaves 878 | -10/Subcaves | Accompanied by 1 ally 1372 | -10/Subcaves | Shifting Twisted Machinery released Sub. Laser 1422 | -10/Subcaves | Shifting Twisted Machinery released Spk. Treads 1430 | -10/Subcaves | Shifting Twisted Machinery released Shrapnel Trap 1431 | -10/Subcaves | Shifting Twisted Machinery released Ripper 1620 | -10/Subcaves | Discovered new exit (range 14) 1628 | -10/Subcaves | Disturbed a concealed Subdweller 1655 | -10/Subcaves | Entered Materials 1655 | -8/Materials | Evolved 4 slots: Propulsion x2, Utility x2 1656 | -8/Materials | Loaded intel: 13 trap records 2116 | -8/Materials | Build established: Scavenger-Mutant 2599 | -8/Materials | Discovered new exit (range 8) 2640 | -8/Materials | Build established: Mutant 2681 | -8/Materials | Repaired Recoil Stabilizer 2698 | -8/Materials | Entered Factory 2698 | -7/Factory | Evolved 2 slots: Power x1, Utility x1 3317 | -7/Factory | Discovered new exit (range 9) 3379 | -7/Factory | Entered Lower Caves 3620 | -7/Lower Caves | Spotted B-75 Beast 3659 | -7/Lower Caves | Destroyed B-75 Beast 3682 | -7/Lower Caves | System corruption reached 10% 3749 | -7/Lower Caves | Learned location of 1 exit from Factory 3865 | -7/Lower Caves | Encountered a Warlord checkpoint 4036 | -7/Lower Caves | Discovered new exit (range 13) 4050 | -7/Lower Caves | Entered another Lower Caves area 4131 | -7/Lower Caves | Discovered new exit (range 7) 4159 | -7/Lower Caves | Entered Factory 4159 | -6/Factory | Evolved 2 slots: Utility x2 4160 | -6/Factory | Identified exit to Lower Caves 4387 | -6/Factory | Discovered new exit (range 6) 4511 | -6/Factory | Entered another Factory area 4511 | -5/Factory | Evolved 2 slots: Utility x2 4632 | -5/Factory | Identified exit to Upper Caves 4632 | -5/Factory | Identified exit to Extension 4994 | -5/Factory | Build established: Scavenger-Mutant 5115 | -5/Factory | Entered Extension 5436 | -5/Extension | Rescued a captive Derelict 5437 | -5/Extension | Rescued a captive Derelict 5553 | -5/Extension | Door terminal overloaded 5554 | -5/Extension | Rescued a captive Derelict 5948 | -5/Extension | Rescued A7 6302 | -5/Extension | Crushed by falling debris 6871 | -5/Extension | Discovered new exit (range 10) 6873 | -5/Extension | Discovered new exit (range 6) 6941 | -5/Extension | Entered Cetus 6941 | -5/Cetus | Accompanied by 8 allies (A7) 6946 | -5/Cetus | Acquired a Cetus Manufacturing Module code from A7 6957 | -5/Cetus | Spotted Cetus Guard 6958 | -5/Cetus | Spotted Cetus Guard 6960 | -5/Cetus | Spotted Cetus Guard 6961 | -5/Cetus | Allies destroyed Cetus Guard 6962 | -5/Cetus | Spotted Cetus Guard 6969 | -5/Cetus | Allies destroyed Cetus Guard 6978 | -5/Cetus | Allies destroyed Cetus Guard 6991 | -5/Cetus | Allies destroyed Cetus Guard 7015 | -5/Cetus | Lost 4 allies 7132 | -5/Cetus | Started Cetus Manufacturing Module 7153 | -5/Cetus | Discovered new exit (range 16) 7157 | -5/Cetus | Manufactured an Enhanced Grunt 7182 | -5/Cetus | Manufactured an Enhanced Grunt 7207 | -5/Cetus | Manufactured an Enhanced Grunt 7232 | -5/Cetus | Manufactured an Enhanced Grunt 7257 | -5/Cetus | Manufactured an Enhanced Grunt 7314 | -5/Cetus | Entered Archives 7314 | -5/Archives | Accompanied by 9 allies (A7) 7360 | -5/Archives | Unable to access archive contents 7374 | -5/Archives | Discovered new exit (range 16) 7388 | -5/Archives | Discovered new exit (range 14) 7446 | -5/Archives | Unable to access archive contents 7458 | -5/Archives | Unable to access archive contents 7461 | -5/Archives | Discovered new exit (range 15) 7471 | -5/Archives | Unable to access archive contents 7639 | -5/Archives | Entered Hub_04(d) 7639 | -5/Hub_04(d) | Accompanied by 8 allies 7660 | -5/Hub_04(d) | Discovered new exit (range 16) 7712 | -5/Hub_04(d) | Lost 4 parts (1p1n1u1w) 7777 | -5/Hub_04(d) | Lost 8 allies 7777 | -5/Hub_04(d) | Entered Factory 7777 | -4/Factory | Evolved 2 slots: Propulsion x1, Utility x1 7909 | -4/Factory | Identified exit to Upper Caves 7909 | -4/Factory | Identified exit to Armory 8427 | -4/Factory | Discovered new exit (range 15) 8445 | -4/Factory | Entered Research 8445 | -3/Research | Evolved 2 slots: Utility x2 8457 | -3/Research | Lost 4 parts (3u1w) 9009 | -3/Research | Lost 9 parts (1p3n4u1w) 9360 | -3/Research | System corruption reached 10% 9400 | -3/Research | Released all parts (12) 9427 | -3/Research | Lost 6 parts (1p4n1u) 9482 | -3/Research | Core integrity fell below 50% 9528 | -3/Research | Core integrity fell below 20% 9533 | -3/Research | Destroyed by P-80 Master with Gamma Rifle Last Messages --------------- 09498_ Slammed into P-80 Master. 09500_ System corrupted: Matter fused (-10). 09500_ P-80 Master destroyed. 09502_ Slammed into P-80 Master. 09504_ System corrupted: Hpw. Shock Rifle failed to cycle. 09504_ K-01 Serf collects debris. 09516_ |HJZLY AE>R7E#,LRZWHGB6ZXKM 09528_ Triggered Stasis Trap. 09528_ A bubble of rippling energy engulfs the area. 09528_ Field strength at 94. 09528_ Field strength at 88. 09529_ Field strength at 76. 09530_ Field strength at 51. 09531_ System corrupted: Substantial component data lost. 09531_ Field strength at 25. 09532_ Field strength at 19. 09533_ Stasis field depleted. Map ----- +----------------------------------------------------+ | ????????# #?????????# #????????????????????????? | | ????????# #?????????# #????????????????????????? | | ???????? ########??# #????????????????????????? | | ????????##?# ?# #????????????????????????? | | ???????????? ?# #????????????????????????? | | ????????????? """ # #????????????????????????? | | ????????????? """" # #????????????????????????? | | ????????????? """" + #????????????????????????? | | ???????????# """ # #????????????????????????? | | ???????????? # #????????????????????????? | | ???????????# ?# #????????????????????????? | | ???????????# ! ?# #????????????????????????? | | ???????????###### ??# #????????????????????????? | | ????????????????##??# #????????????????????????? | | ????????????????????# #????????????????????????? | | ????????????????????# #????????????????????????? | | ???????????#######??# #????????????????????????? | | ???????????# ?# #????????????????????????? | | ???????????# ?# #????????????????????????? | | ???????????# # p######???????????????????? | | ???????????# # ^ #???????????????????? | | ??????????? """ + #???????????????????? | | ???????????# """ # #???????????????????? | | ???????????? """ ## #???????????????????? | | ????????????! ??# #???????????????????? | | ???????????# ??# @ A#???????????????????? | | ???????????#######???# p #???????????????????? | | ?????????????????????# p#???????????????????? | | ?????????????????????# #???????????????????? | | ?????????????????????# #???????????????????? | | ?????????????????????# ??????????????????? | | ????????????????????? ?????????????????? | | ????????????????????###### ????????????????? | | ??????????????????????????#######+???????????????? | | ?????????????????????????????????????????????????? | | ?????????????????????????????????????????????????? | | ?????????????????????????????????????????????????? | | ?????????????????????????????????????????????????? | | ?????????????????????????????????????????????????? | | ?????????????????????????????????????????????????? | | ?????????????????????????????????????????????????? | | ?????????????????????????????????????????????????? | | ?????????????????????????????????????????????????? | | ?????????????????????????????????????????????????? | | ?????????????????????????????????????????????????? | | ?????????????????????????????????????????????????? | | ?????????????????????????????????????????????????? | | ?????????????????????????????????????????????????? | | ?????????????????????????????????????????????????? | | ?????????????????????????????????????????????????? | +----------------------------------------------------+ Best States ------------- Heat Dissipation 73 Energy Generation 59 Energy Capacity 930 Matter Stores 300 Matter Capacity 300 Sight Range 16 Robot Scan Range 20 Terrain Scan Density 10 Jamming Range 16 Power Amplification 50 Armor Coverage 825 Resistance: KI 30 Point Defense Rating 80 Evasion (%) 70 Targeting Accuracy 14 Target Analysis 6 Recoil Reduction 6 Energy Filtering 30 Offensive Hacking 20 Item Schematics ----------------- None Robot Schematics ------------------ None Fabricated ------------ Nothing Repaired ---------- Recoil Stabilizer | 36% | -8/Materials Studied --------- None Alien Tech Used ----------------- None Achievements -------------- A Problem For Future Me Can't Touch This For Emergencies Only Ghost 'Em Heavy Suspicion Into The Breach Live, Flee, And Rebuild There's More Where That Came From Throw Away The Key Challenges ------------ None Game ------ Seed ArmageddonAlertSegregator Manual? 0 Play Time 02:08:51 Cumulative 89.1 hours Start 2026.02.10 @ 20:25:58 End 2026.02.10 @ 22:55:15 Sessions 1 Manual Loads 0 Difficulty Rogue Special Mode None Game No. 91 Rogue 91 Adventurer 0 Explorer 0 Win Type - Total 2 Types 1/0/0/1/0/0/0/0/0/0 Lore% 41 Gallery% 44 Achievement% 27 Wizard Run 0 Options --------- Layout 1 ASCII 0 Keyboard 1 Movement Vi Keybinds 0 Fullscreen 1 Font 24/Smallcaps Map View 50x35 Zoom Use 0% Tactical HUD 1 Map Filters NONE Filters NONE Steam 1 RUN: 05982107-9a18-4aaa-ac01-af5d75c08707